bitfinex/quotes_ETHUSD_20230905
["timestamp","ask_amount","ask_price","bid_price","bid_amount"]
[1693926783280,0.95968848,1638.8,1638.7,26.79088426]
[1693926783929,0.95968848,1638.8,1638.7,28.07046926]
[1693926784140,0.95968848,1638.8,1638.7,31.67364999]
[1693926784340,0.95968848,1638.8,1638.7,33.88680691]
[1693926784720,0.95968848,1638.8,1638.7,31.67364999]
[1693926784920,0.101,1639.0,1638.7,33.88680691]
[1693926785243,0.101,1639.0,1638.9,1.9367]
[1693926785426,0.101,1639.1,1639.0,1.9367]
[1693926785627,0.1064103,1639.3,1639.0,29.84371118]
[1693926785829,0.1064103,1639.3,1639.2,0.9877]
[1693926786032,0.1064103,1639.3,1639.2,32.88583426]
[1693926786230,0.22537312,1639.5,1639.2,35.09899118]
[1693926786428,6.14478658,1639.8,1639.6,0.6137]
[1693926786630,6.14478658,1639.8,1639.7,28.95336071]
[1693926786828,6.14478658,1639.8,1639.7,28.98832716]
[1693926787006,6.14478658,1639.8,1639.7,31.98832716]
[1693926787743,6.14478658,1639.8,1639.7,22.38971]
[1693926788047,7.7797476,1639.8,1639.5,3.6137]
[1693926788345,7.7797476,1639.8,1639.5,0.6137]
[1693926788346,0.78684308,1639.6,1639.5,0.6137]
[1693926788856,0.78684308,1639.6,1639.5,12.81254]
[1693926789539,0.78684308,1639.6,1639.5,6.71312]
[1693926790111,0.78684308,1639.6,1639.4,0.6137]
[1693926790656,1.83112639,1639.6,1639.4,12.81322]
[1693926790843,0.78684308,1639.6,1639.4,12.81322]
[1693926791508,2.2343,1639.7,1639.5,5.00371426]
[1693926791705,2.2343,1639.7,1639.6,12.81178]
[1693926791904,4.2287356,1639.8,1639.6,23.30083426]
[1693926792154,4.2287356,1639.8,1639.7,4.0937]
[1693926792444,4.2287356,1639.8,1639.7,22.38971]
[1693926792744,4.2287356,1639.8,1639.7,25.67758643]
[1693926793138,4.2287356,1639.8,1639.7,30.06760069]
[1693926795856,4.2287356,1639.8,1639.7,28.74460069]
[1693926796013,0.101,1639.9,1639.7,30.06760069]
[1693926796214,0.73735696,1640.2,1639.8,25.51177118]
[1693926796449,0.73735696,1640.2,1640.1,36.37977118]
[1693926796680,0.73735696,1640.2,1640.1,39.37977118]
[1693926796893,0.101,1640.3,1640.1,39.85977118]
[1693926797042,0.051,1640.3,1640.2,25.97522849]
[1693926797242,2.23371586,1640.8,1640.6,2.21315692]
[1693926797479,3.02055894,1640.8,1640.7,28.54051426]
[1693926797683,0.101,1640.8,1640.7,26.76856426]
[1693926798083,0.101,1640.8,1640.7,29.50072118]
[1693926798259,0.1064103,1641.3,1641.0,0.6137]
[1693926798465,0.1064103,1641.3,1641.2,40.23931426]
[1693926798802,1.90633939,1641.4,1641.3,18.89189]
[1693926798803,0.02100347,1641.4,1641.3,18.89189]
[1693926798961,0.02100347,1641.4,1641.3,24.95890426]
[1693926799162,0.101,1641.9,1641.7,2.21315692]
[1693926799395,4.07259009,1642.9,1642.6,2.56833376]
[1693926799689,0.78684308,1642.8,1642.7,12.17506]
[1693926799992,0.78684308,1642.3,1642.1,1.842]
[1693926800148,3.0,1642.7,1642.1,2.435859]
[1693926800149,0.78684308,1642.2,1642.1,2.435859]
[1693926800349,0.78684308,1642.4,1642.1,6.0897]
[1693926800583,3.31904308,1642.5,1641.8,7.93251]
[1693926800784,0.78684308,1642.0,1641.9,6.04513801]
[1693926801150,0.78684308,1642.3,1641.9,18.22613801]
[1693926801687,0.78684308,1642.3,1642.0,9.08986]
[1693926802005,4.66270889,1642.5,1642.3,6.08902]
[1693926802307,4.66270889,1642.5,1642.1,6.56948]
[1693926802308,0.78684308,1642.2,1642.0,9.09005]
[1693926802509,0.78684308,1641.7,1641.3,6.09272]
[1693926802657,0.78684308,1641.4,1641.3,6.09272]
[1693926802858,0.78684308,1641.4,1641.1,6.09321]
[1693926802859,0.78684308,1641.3,1641.2,6.09304]
[1693926803170,0.78684308,1641.3,1641.2,6.0931]
[1693926803376,0.78684308,1641.3,1641.0,12.80076]
[1693926803574,0.78684308,1641.1,1641.0,6.70723]
[1693926804265,0.78684308,1641.3,1641.0,7.987357]
[1693926804467,0.78684308,1641.3,1641.0,14.081197]
[1693926804694,4.66374689,1641.7,1641.0,14.081197]
[1693926804695,0.78684308,1641.6,1641.0,16.713197]
[1693926804893,4.66374689,1641.7,1641.3,18.27762]
[1693926805063,2.5322,1641.7,1641.3,18.89132]
[1693926805271,2.5322,1641.7,1641.4,3.0]
[1693926805487,2.5322,1641.7,1641.4,11.65971347]
[1693926805864,2.5322,1641.7,1641.4,9.09215]
[1693926806100,0.78684308,1641.5,1641.4,8.65977061]
[1693926806817,0.78684308,1641.5,1641.2,9.09298]
[1693926806973,0.78684308,1641.5,1641.3,11.66111953]
[1693926807176,0.78684308,1641.5,1641.4,0.48]
[1693926808319,0.78684308,1641.4,1641.3,3.0]
[1693926808500,0.78684308,1641.4,1641.1,0.6137]
[1693926808671,0.78684308,1641.4,1641.2,2.56890763]
[1693926808871,0.78684308,1641.4,1641.3,6.09273]
[1693926809103,0.78684308,1641.4,1641.3,8.66129526]
[1693926809627,0.78684308,1641.4,1641.3,9.27499526]
[1693926809816,0.78684308,1641.4,1641.3,9.75499526]
[1693926809974,0.78684308,1641.4,1641.3,0.6137]
[1693926812592,0.78684308,1641.4,1641.2,0.6137]
[1693926812903,0.78684308,1641.4,1641.2,9.77374426]
[1693926817219,0.78684308,1641.1,1641.0,0.6137]
[1693926817427,0.78684308,1640.9,1640.8,0.6137]
[1693926817778,2.632,1641.4,1640.9,1.24925793]
[1693926818021,2.13206628,1641.3,1640.9,1.24925793]
[1693926818322,2.13206628,1641.3,1640.9,10.41048219]
[1693926818681,9.70123,1641.5,1640.9,4.31627219]
[1693926818883,13.154943,1641.4,1640.9,1.24925793]
[1693926819333,16.154943,1641.4,1640.9,1.24925793]
[1693926819640,3.06701426,1641.3,1640.9,1.24925793]
[1693926819810,3.06701426,1641.3,1640.4,6.09598]
[1693926819811,18.27951,1641.2,1640.7,0.6137]
[1693926820317,3.0,1641.1,1640.7,0.6137]
[1693926820630,12.18778,1641.0,1640.7,0.6137]
[1693926820835,1.218778,1640.9,1640.4,0.6137]
[1693926821040,1.218778,1640.9,1640.4,9.77671426]
[1693926821191,2.13232606,1641.1,1640.6,0.6137]
[1693926821622,8.22587606,1641.1,1640.6,0.6137]
[1693926822019,17.08652606,1641.1,1640.6,0.6137]
[1693926822719,4.89942606,1641.1,1640.5,0.6137]
[1693926822955,0.48994261,1641.0,1640.7,0.6137]
[1693926823695,4.89942606,1641.1,1640.8,4.16071426]
[1693926823924,4.89942606,1641.1,1640.8,16.34962426]
[1693926824217,2.13232606,1641.1,1641.0,6.70754]
[1693926824422,2.7671,1641.4,1641.0,10.25455426]
[1693926824619,2.13206628,1641.3,1641.0,9.77455426]
[1693926824825,2.13206628,1641.3,1641.1,0.48]
[1693926825026,2.13206628,1641.3,1641.1,12.64039426]
[1693926825336,2.13206628,1641.3,1641.1,13.25409426]
[1693926825542,2.13206628,1641.3,1641.1,10.25409426]
[1693926825750,2.7671,1641.4,1641.1,10.25409426]
[1693926825901,2.7671,1641.4,1641.3,0.6137]
[1693926826106,2.7671,1641.4,1641.3,7.18643]
[1693926826308,4.11734689,1641.7,1641.3,7.18643]
[1693926827209,4.11734689,1641.7,1641.3,1.0937]
[1693926827210,2.13154689,1641.7,1641.3,1.0937]
[1693926828852,2.13154689,1641.7,1641.3,10.25336426]
[1693926829042,2.13154689,1641.7,1641.4,1.0937]
[1693926830067,2.13154689,1641.7,1641.5,3.06701426]
[1693926830212,2.13154689,1641.7,1641.6,15.66322]
[1693926830412,2.13154689,1641.7,1641.6,18.73023426]
[1693926830755,2.5351,1641.8,1641.6,24.82184426]
[1693926830955,2.5351,1641.8,1641.6,18.73023426]
[1693926831160,2.5351,1641.8,1641.6,0.48]
[1693926831453,2.5351,1641.8,1641.5,0.6137]
[1693926831820,2.5351,1641.8,1641.4,0.6137]
[1693926834464,2.5351,1641.8,1641.5,0.6137]
[1693926834465,8.62597,1641.8,1641.5,0.6137]
[1693926834671,0.862597,1641.7,1641.5,0.6137]
[1693926835050,3.92961126,1641.7,1641.1,6.09346]
[1693926835253,2.632,1641.6,1640.8,8.532281]
[1693926835560,6.09236,1641.4,1640.9,3.06701426]
[1693926835949,12.18439,1641.5,1640.9,9.16119426]
[1693926836261,12.18439,1641.5,1641.0,0.6137]
[1693926836262,1.218439,1641.4,1641.0,0.6137]
[1693926836635,7.310829,1641.4,1641.0,0.6137]
[1693926838231,2.13180655,1641.5,1641.1,3.68071426]
[1693926838657,2.13180655,1641.5,1641.1,9.77396426]
[1693926839169,6.953887,1641.7,1641.1,9.77396426]
[1693926839376,9.08543389,1641.7,1641.1,9.77396426]
[1693926839756,2.99414389,1641.7,1641.1,15.86743426]
[1693926840028,9.08547389,1641.7,1641.1,11.97007069]
[1693926840233,2.99414389,1641.7,1641.1,11.97007069]
[1693926840465,2.13154689,1641.7,1641.4,6.70598]
[1693926840670,2.13154689,1641.7,1641.4,9.77299426]
[1693926841438,2.13154689,1641.7,1641.6,3.06701426]
[1693926841750,2.13154689,1641.7,1641.6,33.19049853]
[1693926841954,0.62571546,1642.2,1641.6,33.80343058]
[1693926842142,0.62571546,1642.2,1641.8,0.6137]
[1693926842475,0.62571546,1642.2,1642.0,6.70362]
[1693926842665,0.62571546,1642.2,1642.0,9.77063426]
[1693926842866,0.99564499,1642.2,1642.0,0.6137]
[1693926843071,13.17444499,1642.2,1641.8,0.6137]
[1693926843265,13.17444499,1642.2,1641.7,0.6137]
[1693926843459,0.99564499,1642.2,1641.8,0.6137]
[1693926844378,0.99564499,1642.2,1641.9,0.82600131]
[1693926844732,7.08511499,1642.2,1641.9,0.82600131]
[1693926844973,7.08511499,1642.2,1641.9,0.21230131]
[1693926844974,6.7984415,1642.1,1641.9,0.21230131]
[1693926845269,14.81226,1642.0,1641.9,0.21230131]
[1693926845497,14.81226,1642.0,1641.4,6.09215]
[1693926845782,1.9426179,1641.9,1641.3,6.09256]
[1693926845949,4.5711179,1641.9,1641.5,0.6137]
[1693926846141,4.5711179,1641.9,1641.6,22.0109275]
[1693926846477,2.6285,1641.9,1641.6,15.86386426]
[1693926847377,2.6285,1641.9,1641.8,0.6137]
[1693926848256,2.6285,1641.9,1641.6,6.70531]
[1693926848594,2.6285,1641.9,1641.6,9.77232426]
[1693926848894,2.6285,1641.9,1641.6,0.6137]
[1693926848895,8.7191,1641.9,1641.6,0.6137]
[1693926849198,0.87191,1641.8,1641.6,0.6137]
[1693926849405,14.80978,1641.9,1641.6,0.6137]
[1693926849406,2.6285,1641.9,1641.6,0.6137]
[1693926849906,2.6285,1641.9,1641.6,6.70529]
[1693926851309,2.6285,1641.9,1641.6,0.6137]
[1693926853275,2.6285,1641.9,1641.6,6.70531]
[1693926853611,2.6285,1641.9,1641.6,15.86393426]
[1693926853812,2.6285,1641.9,1641.7,1.0937]
[1693926853995,2.6285,1641.9,1641.7,10.25185426]
[1693926854201,2.6285,1641.9,1641.7,4.16071426]
[1693926854400,2.6285,1641.9,1641.7,1.0937]
[1693926855110,3.10446575,1641.9,1641.6,6.70528]
[1693926855414,2.6285,1641.9,1641.6,9.77229426]
[1693926855901,2.13115752,1642.0,1641.7,4.16071426]
[1693926856218,2.13115752,1642.0,1641.8,6.09087]
[1693926856509,2.13115752,1642.0,1641.8,9.15788426]
[1693926857009,2.13115752,1642.0,1641.7,0.6137]
[1693926857217,2.95326727,1642.0,1641.7,0.6137]
[1693926858517,15.13352727,1642.0,1641.7,0.6137]
[1693926859299,15.13352727,1642.0,1641.4,6.09214]
[1693926859300,21.22367727,1642.0,1641.4,0.6137]
[1693926859512,15.13352727,1642.0,1641.7,0.6137]
[1693926860616,15.13352727,1642.0,1641.5,0.6137]
[1693926860932,7.60393273,1641.9,1641.5,0.6137]
[1693926861121,25.48402699,1641.9,1641.5,0.6137]
[1693926861299,3.0,1641.8,1641.5,0.6137]
[1693926861501,12.18248,1641.7,1641.5,0.6137]
[1693926862396,12.18248,1641.7,1641.3,0.6137]
[1693926862596,1.218248,1641.6,1641.3,0.6137]
[1693926863099,2.632,1641.5,1641.3,0.6137]
[1693926863300,6.09236,1641.4,1641.3,0.6137]
[1693926863507,6.09236,1641.4,1640.9,6.72233942]
[1693926863508,6.09236,1641.4,1641.0,0.6137]
[1693926864932,21.27708,1641.4,1641.0,0.6137]
[1693926865083,4.759708,1641.3,1641.0,0.6137]
[1693926865288,12.1862,1641.2,1641.0,0.6137]
[1693926865833,12.1862,1641.2,1640.9,0.62839942]
[1693926865990,2.632,1641.1,1640.9,0.62839942]
[1693926866191,12.18768,1641.0,1640.9,0.62839942]
[1693926866503,14.279008,1641.0,1640.7,0.6137]
[1693926866703,20.372848,1641.0,1640.7,0.6137]
[1693926867033,14.279008,1641.0,1640.7,0.6137]
[1693926867703,14.279008,1641.0,1640.5,6.70937]
[1693926867905,20.372848,1641.0,1640.5,0.6137]
[1693926868112,2.0372848,1640.9,1640.5,0.6137]
[1693926868424,6.09466,1640.8,1640.5,0.6137]
[1693926868601,6.09466,1640.8,1640.6,0.6137]
[1693926869728,6.09466,1640.8,1640.4,0.6137]
[1693926869907,6.09458,1640.8,1640.4,0.6137]
[1693926870102,8.65669848,1640.8,1640.4,0.6137]
[1693926870414,14.75127848,1640.8,1640.4,0.6137]
[1693926871955,13.52736591,1640.9,1640.3,0.6137]
[1693926872254,10.89516591,1640.9,1640.5,0.6137]
[1693926872439,4.80088591,1640.9,1640.5,0.6137]
[1693926872650,4.80088591,1640.9,1640.5,6.70935]
[1693926872848,4.80088591,1640.9,1640.5,12.02118969]
[1693926873016,4.80088591,1640.9,1640.6,4.16071426]
[1693926873017,2.13258591,1640.9,1640.6,4.16071426]
[1693926873215,2.13258591,1640.9,1640.6,10.25600426]
[1693926873564,10.78043606,1641.1,1640.6,10.25600426]
[1693926873857,4.68692606,1641.1,1640.6,16.96426631]
[1693926874062,4.68692606,1641.1,1640.8,0.6137]
[1693926874864,2.13232606,1641.1,1640.9,3.06701426]
[1693926875023,2.13232606,1641.1,1641.0,7.18754]
[1693926875357,0.63723049,1641.3,1641.0,16.34839426]
[1693926875594,0.63723049,1641.3,1641.2,0.6137]
[1693926875857,0.63723049,1641.3,1641.2,23.42101774]
[1693926876152,0.63723049,1641.3,1641.2,26.42101774]
[1693926876357,0.63723049,1641.3,1641.2,29.05301774]
[1693926878155,1.56408936,1641.5,1641.2,29.05301774]
[1693926878326,10.8208973,1641.9,1641.4,0.6137]
[1693926878663,10.8208973,1641.9,1641.6,0.6137]
[1693926878664,6.48521908,1641.9,1641.6,0.6137]
[1693926878819,4.7303873,1641.9,1641.6,6.70512]
[1693926880811,16.9114473,1641.9,1641.5,0.6137]
[1693926881014,23.0020073,1641.9,1641.5,0.6137]
[1693926881257,10.8208873,1641.9,1641.5,0.6137]
[1693926881464,4.7303873,1641.9,1641.5,13.468117]
[1693926884617,0.63723049,1642.0,1641.9,0.6137]
[1693926885018,0.63723049,1642.0,1641.8,0.6137]
[1693926885269,1.40553511,1642.0,1641.8,6.70453]
[1693926885566,0.63723049,1642.0,1641.8,6.70453]
[1693926885916,0.63723049,1642.0,1641.7,0.6137]
[1693926886133,6.72745049,1642.0,1641.7,0.6137]
[1693926886660,0.63723049,1642.0,1641.8,3.68071426]
[1693926886843,0.63723049,1642.0,1641.9,15.7947]
[1693926887049,0.63723049,1642.0,1641.9,21.35694969]
[1693926887248,8.71643,1642.4,1641.9,21.35694969]
[1693926887431,14.80538,1642.4,1642.1,0.6137]
[1693926888359,8.71643,1642.4,1642.1,0.6137]
[1693926888559,8.66643,1642.4,1642.1,0.6137]
[1693926889458,22.53226589,1642.4,1642.0,0.3637]
[1693926889667,16.44333589,1642.4,1642.0,0.3637]
[1693926890023,22.53198589,1642.4,1642.0,0.3637]
[1693926890258,16.44333589,1642.4,1642.0,0.3637]
[1693926891064,2.13076829,1642.3,1642.0,0.3637]
[1693926891226,3.98817871,1642.3,1642.0,0.3637]
[1693926891425,2.13076829,1642.3,1642.0,6.45371]
[1693926891763,2.13076829,1642.3,1642.1,3.54701426]
[1693926891961,2.13076829,1642.3,1642.2,6.08939]
[1693926892739,2.13076829,1642.3,1642.1,9.63669426]
[1693926893253,2.13076829,1642.3,1642.1,3.54701426]
[1693926893447,2.13076829,1642.3,1642.0,6.45371]
[1693926893641,2.13076829,1642.3,1642.0,12.54371]
[1693926894662,2.13076829,1642.3,1642.0,6.4537]
[1693926895573,2.13076829,1642.3,1642.0,0.3637]
[1693926896149,8.21981829,1642.3,1642.0,0.3637]
[1693926896466,0.82198183,1642.2,1642.0,6.45378]
[1693926896760,2.13076829,1642.3,1642.0,6.45354]
[1693926896921,2.13076829,1642.3,1642.0,12.54367]
[1693926897128,2.13076829,1642.3,1642.0,6.45354]
[1693926897631,2.13076829,1642.3,1642.0,12.54367]
[1693926898868,2.13076829,1642.3,1642.0,15.61068426]
[1693926899067,2.13076829,1642.3,1642.0,17.78077369]
[1693926900171,2.13076829,1642.3,1642.1,3.06701426]
[1693926900333,2.13076829,1642.3,1642.2,12.17878]
[1693926900532,2.13076829,1642.3,1642.2,15.72579426]
[1693926900733,2.13076829,1642.3,1642.2,9.63640426]
[1693926901231,2.13076829,1642.3,1642.0,15.54371]
[1693926901427,2.13076829,1642.3,1642.1,3.06701426]
[1693926901730,2.13076829,1642.3,1642.2,24.56088426]
[1693926901966,1.24716829,1642.3,1642.2,34.26320631]
[1693926902168,0.101,1642.8,1642.2,34.26320631]
[1693926902368,0.101,1642.8,1642.7,0.1137]
[1693926902568,0.101,1642.8,1642.7,17.53146977]
[1693926902770,0.101,1642.8,1642.7,11.37692551]
[1693926902987,0.101,1642.8,1642.7,0.1137]
[1693926903474,0.101,1642.8,1642.6,0.1137]
[1693926904107,0.101,1642.8,1642.6,6.2016]
[1693926904320,0.101,1642.8,1642.7,3.39050971]
[1693926904470,0.101,1642.8,1642.7,9.95803971]
[1693926904671,0.101,1642.8,1642.7,12.35532368]
[1693926905283,0.101,1642.8,1642.7,29.36938368]
[1693926905682,0.101,1642.8,1642.7,3.20077942]
[1693926906006,0.101,1642.8,1642.7,0.32349545]
[1693926908406,0.101,1642.8,1642.7,0.20979545]
[1693926908603,0.101,1642.8,1642.7,0.82349545]
[1693926909212,0.101,1642.8,1642.7,6.91102545]
[1693926909412,0.101,1642.8,1642.7,14.29841699]
[1693926909632,0.101,1642.8,1642.7,17.36543125]
[1693926909796,0.101,1642.8,1642.7,17.84543125]
[1693926909991,0.101,1642.8,1642.7,0.82349545]
[1693926911322,0.101,1642.8,1642.7,6.91102545]
[1693926911702,0.101,1642.8,1642.7,16.54556971]
[1693926912629,0.101,1642.8,1642.7,0.82349545]
[1693926915134,6.18816,1642.8,1642.7,0.20979545]
[1693926915306,1.512396,1642.8,1642.7,0.20979545]
[1693926915629,1.512396,1642.8,1642.5,0.6137]
[1693926915935,1.512396,1642.8,1642.7,0.1927809]
[1693926916429,0.101,1642.8,1642.6,0.6137]
[1693926916602,0.101,1642.8,1642.6,6.70157]
[1693926916800,0.101,1642.8,1642.7,0.19230574]
[1693926917199,0.101,1642.8,1642.6,0.6137]
[1693926917546,0.101,1642.8,1642.6,6.70154]
[1693926917896,0.101,1642.8,1642.7,3.06701426]
[1693926918242,0.101,1642.8,1642.7,22.42330426]
[1693926918728,0.101,1642.8,1642.7,27.26230426]
[1693926919113,0.101,1642.8,1642.7,25.42330426]
[1693926919437,0.101,1642.8,1642.7,13.24824426]
[1693926920199,0.101,1642.8,1642.7,0.6137]
[1693926922329,0.101,1642.8,1642.7,23.70222826]
[1693926923734,0.101,1642.8,1642.7,26.70222826]
[1693926923930,0.101,1642.8,1642.7,10.18123]
[1693926924135,0.101,1642.8,1642.7,7.18123]
[1693926924448,0.101,1642.8,1642.7,16.33577426]
[1693926924655,0.101,1642.8,1642.7,22.42330426]
[1693926926368,0.101,1642.8,1642.7,16.33577426]
[1693926926857,0.101,1642.8,1642.7,13.26876]
[1693926927153,0.101,1642.8,1642.7,7.18123]
[1693926928158,0.101,1642.8,1642.7,1.0937]
[1693926928662,0.101,1642.8,1642.7,0.6137]
[1693926928825,0.101,1642.8,1642.7,6.70123]
[1693926929447,0.101,1642.8,1642.7,23.22218926]
[1693926929627,0.101,1642.8,1642.7,23.70218926]
[1693926929837,0.101,1642.8,1642.7,17.61465926]
[1693926930033,0.101,1642.8,1642.7,6.70123]
[1693926930759,0.101,1642.8,1642.7,12.78876]
[1693926931345,0.101,1642.8,1642.7,15.85577426]
[1693926931542,0.101,1642.8,1642.7,7.36199834]
[1693926931775,0.101,1642.8,1642.7,12.96952834]
[1693926932885,0.101,1642.8,1642.7,13.44952834]
[1693926933090,0.101,1642.8,1642.7,16.01200217]
[1693926933592,0.101,1642.8,1642.7,25.16654643]
[1693926933952,0.601,1642.8,1642.7,28.16654643]
[1693926934188,0.601,1642.8,1642.7,30.00554643]
[1693926934352,0.601,1642.8,1642.7,30.61847848]
[1693926936683,0.601,1642.8,1642.7,31.11326855]
[1693926937066,0.601,1642.8,1642.7,36.11326855]
[1693926937805,0.601,1642.8,1642.7,36.85540655]
[1693926938188,0.101,1643.1,1642.7,36.37540655]
[1693926938487,0.101,1643.1,1643.0,2.4527]
[1693926938792,0.101,1643.1,1643.0,30.47832631]
[1693926938992,0.101,1643.1,1643.0,33.47832631]
[1693926939586,0.0187328,1643.3,1643.2,6.68071426]
[1693926939787,4.44582579,1643.7,1643.5,0.6137]
[1693926939989,6.08132,1644.4,1643.5,24.25342426]
[1693926940175,3.0,1644.8,1643.7,3.06701426]
[1693926940375,2.07843355,1644.1,1644.0,12.16533]
[1693926940561,2.07843355,1644.1,1644.0,12.77903]
[1693926940761,2.07843355,1644.1,1644.0,6.69631]
[1693926941061,7.91935,1644.7,1644.0,12.77903]
[1693926941257,2.12817706,1644.3,1644.0,12.77903]
[1693926941600,2.12817706,1644.3,1644.0,0.6137]
[1693926942269,8.20984706,1644.3,1643.9,0.6137]
[1693926942487,1.839,1644.1,1643.9,0.6137]
[1693926942690,7.92136,1644.1,1643.9,0.6137]
[1693926942885,0.792136,1644.0,1643.9,0.6137]
[1693926943315,0.792136,1644.0,1643.7,0.6137]
[1693926943494,6.874856,1644.0,1643.7,0.6137]
[1693926944362,6.874856,1644.0,1643.6,9.08415]
[1693926944363,6.874856,1644.0,1643.6,0.6137]
[1693926944759,0.792136,1644.0,1643.6,6.69789]
[1693926944966,0.792136,1644.0,1643.6,0.6137]
[1693926945188,14.796806,1644.0,1643.6,0.6137]
[1693926945373,1.4796806,1643.9,1643.6,6.69789]
[1693926945864,1.4796806,1643.9,1643.6,0.6137]
[1693926945865,4.54669486,1643.9,1643.6,0.6137]
[1693926946071,1.839,1643.7,1643.6,0.6137]
[1693926946910,5.44737541,1643.9,1643.6,0.6137]
[1693926947125,2.12869481,1643.9,1643.6,0.6137]
[1693926947330,3.14487068,1643.9,1643.6,0.6137]
[1693926947838,2.12869481,1643.9,1643.6,12.78207]
[1693926949656,2.12869481,1643.9,1643.6,18.86627]
[1693926950342,2.12869481,1643.9,1643.6,12.78207]
[1693926950550,2.12869481,1643.9,1643.7,6.06701426]
[1693926950691,2.12869481,1643.9,1643.8,19.34408]
[1693926950897,2.12869481,1643.9,1643.8,24.95220369]
[1693926951123,4.0106,1644.2,1643.8,27.95220369]
[1693926951429,4.0106,1644.2,1643.8,24.95220369]
[1693926952010,2.2709,1644.2,1643.8,24.95220369]
[1693926952224,2.12817706,1644.3,1644.0,0.6137]
[1693926952425,2.12817706,1644.3,1644.1,6.08235]
[1693926953147,2.12817706,1644.3,1643.9,0.6137]
[1693926953449,4.47061408,1644.3,1644.0,0.6137]
[1693926953744,1.839,1644.2,1644.0,0.5637]
[1693926953946,7.92108,1644.2,1644.0,0.5637]
[1693926954322,7.92108,1644.2,1643.8,0.5137]
[1693926955347,7.92108,1644.2,1643.8,6.59714]
[1693926955555,9.88451841,1644.2,1643.8,6.59714]
[1693926955875,3.80243841,1644.2,1643.8,6.59714]
[1693926956057,9.88441841,1644.2,1643.8,6.59714]
[1693926956569,3.80243841,1644.2,1643.8,6.59714]
[1693926956924,9.88447841,1644.2,1643.8,6.59714]
[1693926957133,0.98844784,1644.1,1643.8,6.59714]
[1693926958823,1.839,1644.0,1643.8,0.5137]
[1693926959018,1.839,1643.9,1643.8,0.5137]
[1693926959262,1.839,1643.9,1643.8,6.59713]
[1693926959466,1.839,1643.9,1643.8,0.5137]
[1693926960148,1.839,1644.0,1643.8,0.5137]
[1693926962041,2.82744784,1644.1,1643.9,0.83803612]
[1693926963863,3.80243841,1644.2,1643.9,0.83803612]
[1693926964369,7.92153,1644.1,1643.9,0.83803612]
[1693926964574,1.839,1644.0,1643.9,0.83803612]
[1693926964775,7.92172,1644.0,1643.9,0.83803612]
[1693926964919,1.839,1644.0,1643.9,0.83803612]
[1693926965125,9.322126,1644.0,1643.9,0.83803612]
[1693926968177,3.239406,1644.0,1643.9,0.83803612]
[1693926968382,19.66889584,1644.2,1643.9,0.83803612]
[1693926968982,12.95144267,1644.2,1643.9,0.83803612]
[1693926969579,13.58673584,1644.2,1643.9,0.83803612]
[1693926969804,12.95144267,1644.2,1643.9,0.83803612]
[1693926969990,1.29514427,1644.1,1643.9,0.83803612]
[1693926970627,7.37751427,1644.1,1643.9,0.83803612]
[1693926971528,18.36589853,1644.1,1643.9,0.83803612]
[1693926972087,4.90601426,1644.0,1643.7,0.6137]
[1693926972289,6.08402,1643.7,1643.2,0.48281237]
[1693926972555,3.67541626,1643.6,1642.9,6.08669]
[1693926972844,3.67541626,1643.6,1642.8,7.54279793]
[1693926972845,1.839,1643.2,1642.8,7.54279793]
[1693926973041,1.839,1643.2,1642.8,6.71314962]
[1693926973198,1.839,1643.2,1642.9,6.70012]
[1693926973398,7.92436,1643.3,1642.9,6.70012]
[1693926973837,3.06701426,1643.2,1642.6,6.2728578]
[1693926974043,1.839,1642.9,1642.6,6.08769]
[1693926974205,7.92549,1643.0,1642.7,0.6137]
[1693926974412,1.839,1643.0,1642.7,0.6137]
[1693926974610,7.92545,1643.0,1642.7,0.6137]
[1693926974811,1.839,1642.8,1642.7,0.6137]
[1693926976453,7.92616,1642.8,1642.7,0.6137]
[1693926976743,9.327457,1642.8,1642.5,0.6137]
[1693926976941,1.839,1642.7,1642.4,0.6137]
[1693926977332,1.839,1642.7,1642.4,6.70227]
[1693926977535,1.839,1642.6,1642.4,0.6137]
[1693926977847,7.92698,1642.6,1642.3,0.6137]
[1693926978178,1.839,1642.5,1642.3,0.6137]
[1693926978361,9.63513243,1642.6,1642.3,0.6137]
[1693926979073,3.54715243,1642.6,1642.3,0.6137]
[1693926979432,1.839,1642.7,1642.3,12.79174]
[1693926979633,1.839,1642.7,1642.3,6.70272]
[1693926979634,7.92654,1642.7,1642.3,6.70272]
[1693926979832,7.92654,1642.7,1642.5,0.6137]
[1693926980098,1.839,1642.6,1642.4,0.24474423]
[1693926980377,1.839,1642.5,1642.4,0.24474423]
[1693926980533,2.631716,1642.5,1642.3,0.6137]
[1693926980730,1.839,1642.4,1642.3,0.6137]
[1693926980929,1.839,1642.4,1642.2,0.6137]
[1693926981154,1.839,1642.4,1642.2,6.70307]
[1693926981355,1.839,1642.4,1642.2,0.6137]
[1693926982483,1.839,1642.3,1642.2,0.6137]
[1693926983067,17.08405426,1642.3,1642.2,0.6137]
[1693926983285,20.08405426,1642.3,1642.1,0.1]
[1693926983587,1.839,1642.2,1642.1,0.1]
[1693926984071,4.90601426,1642.2,1642.1,0.1]
[1693926984285,18.08847252,1642.2,1642.1,0.1]
[1693926986480,24.17786252,1642.2,1642.1,0.1]
[1693926987462,18.08847252,1642.2,1642.1,0.1]
[1693926987850,2.03102776,1642.1,1642.0,0.1]
[1693926988154,11.18780202,1642.1,1642.0,0.1]
[1693926988360,13.80875005,1642.1,1642.0,0.1]
[1693926990892,1.839,1641.4,1641.2,0.7137]
[1693926991393,1.839,1641.4,1641.2,6.80678]
[1693926991690,1.839,1641.4,1641.3,0.82392689]
[1693926991999,11.22234709,1641.8,1641.3,13.00938689]
[1693926992000,1.839,1641.5,1641.3,13.00938689]
[1693926992301,5.96123471,1641.8,1641.3,19.10211689]
[1693926992484,12.18153,1641.9,1641.3,19.10211689]
[1693926992485,4.839,1641.9,1641.3,19.10211689]
[1693926992701,6.9702873,1641.9,1641.3,19.10211689]
[1693926993076,13.0608073,1641.9,1641.3,19.10211689]